[Event "Charlotte Summer IM D 2022"]
[Site "Charlotte"]
[Date "2022.07.28"]
[Round "9.5"]
[White "Wen, Teddie"]
[Black "Chasin, Nico"]
[Result "0-1"]
[ECO "E11"]
[WhiteElo "2234"]
[BlackElo "2285"]
[Annotator "TA"]
[PlyCount "64"]
[EventDate "2022.07.24"]
[EventType "tourn"]
[EventCountry "USA"]
[SourceTitle "playchess.com"]
[Source "ChessBase"]
[SourceQuality "1"]
[TimeControl "5400+30"]

{[%evp 17,63,23,14,0,8,-25,-26,-29,-26,-38,-37,-74,-76,-83,-31,-39,-21,-48,-33,-35,-18,-108,-109,-102,-116,-87,-114,-147,-106,-136,-135,-313,-288,-705,-704,-692,-692,-679,-651,-29992,-143,-29989,-29990,-29998,-29999,-29999,-29997,-29999]} 1. d4 {[%emt 0:05:02]} Nf6 {[%emt 0:01:01]} 2. c4 {[%emt 0:00:04]} e6 {[%emt 0:00:07]} 3. Nf3 {[%emt 0:00:03]} Bb4+ {[%emt 0:00:12]} 4. Bd2 {[%emt 0:00:05]} a5 {[%emt 0:00:18]} 5. g3 {[%emt 0:00:21]} O-O {[%emt 0:00:10]} 6. Bg2 {[%emt 0:00:14]} d5 {[%emt 0:00:14]} 7. a3 {[%emt 0:06:31]} Be7 {[%emt 0:00:37]} 8. Qc2 {[%emt 0:02:42]} c6 {[%emt 0:02:47]} 9. O-O {[%emt 0:02:00]} Nbd7 {[%emt 0:00:14]} 10. Bf4 {[%emt 0:03:57] E11: Bogo-Indian.} b6 {[%emt 0:03:25] [#]} 11. Ne5 $146 {[%emt 0:04:46]} ({Predecessor:} 11. cxd5 cxd5 12. Nc3 Ba6 13. a4 Rc8 14. Qd1 Rc4 15. Rc1 Qa8 16. b3 Rc6 17. Nb5 Rxc1 18. Qxc1 {½-½ (44) Andreikin,D (2729)-Le,Q (2709) Chess.com INT 2022}) 11... Nxe5 {[%emt 0:04:55]} 12. Bxe5 {[%emt 0:04:03] Black has an edge.} Ba6 {[%emt 0:02:14]} 13. Nd2 {[%emt 0:05:43]} Ng4 {[%emt 0:03:27]} 14. Rfd1 {[%emt 0:14:11]} f6 {[%emt 0:06:58]} 15. Bf4 {[%emt 0:01:24] [#]} g5 {[%emt 0:02:04]} (15... e5 $1 $17 {[%cal Re5f4]} 16. h3 exf4 17. hxg4 fxg3 18. fxg3 Qd7) 16. Bh3 $15 {[%emt 0:02:02]} gxf4 {[%emt 0:03:07]} 17. Bxg4 {[%emt 0:00:27]} f5 $36 {[%emt 0:00:14][%mdl 2048] Black is more active.} 18. Bh3 {[%emt 0:03:51]} Bd6 {[%emt 0:05:29]} 19. c5 {[%emt 0:06:29]} (19. e3 $11 {keeps the balance.}) 19... bxc5 $17 {[%emt 0:01:34]} (19... Bxe2 $2 20. Re1 (20. cxd6 Bxd1 21. Qxd1 Qxd6 $14) 20... Bh5 21. cxd6 Qxd6 22. Rac1 $18) 20. dxc5 {[%emt 0:00:08]} Bc7 {[%emt 0:01:07]} (20... Bxe2 $2 21. Re1 (21. cxd6 Bxd1 22. Rxd1 Qxd6 $14) 21... Bg4 22. Bxg4 $18 (22. cxd6 Bxh3 23. Rxe6 Qd7 $16)) 21. Nf3 {[%emt 0:00:47]} Qf6 {[%emt 0:05:12]} 22. Nd4 {[%emt 0:02:29]} Qh6 {[%emt 0:02:56]} 23. Bg2 {[%emt 0:01:32]} fxg3 {[%emt 0:00:42]} 24. hxg3 {[%emt 0:00:32]} (24. fxg3 $17 {was the only chance.} f4 25. Qd2) 24... f4 $19 {[%emt 0:00:18]} 25. g4 {[%emt 0:02:00]} (25. Qd2 Qg6 26. g4 (26. Nxc6 $2 Rf7 $19)) 25... f3 {[%emt 0:02:07]} 26. Nxf3 {[%emt 0:02:11] [#]} Rxf3 $1 {[%emt 0:00:14][%mdl 576] Clearance} 27. Bxf3 {[%emt 0:01:29]} Rf8 {[%emt 0:01:40][%cal Of8f3] ( -> ...Rxf3!)} 28. Bg2 {[%emt 0:12:44]} Qh2+ {[%emt 0:00:10]} 29. Kf1 {[%emt 0:00:37][%cal Od1d3] Loses the game.} Bg3 {[%emt 0:00:05] Black mates.} 30. f3 {[%emt 0:02:02] [#]} Rxf3+ $3 {[%emt 0:00:22][%mdl 512]} 31. Bxf3 {[%emt 0:02:34]} Bf2 {[%emt 0:00:04][%csl Gf2][%cal Rh2g1] A strong pair of Bishops.} 32. Bg2 {[%emt 0:02:05]} Qg1# {[%emt 0:00:03] Weighted Error Value: White=0.77/Black=0.21 (precise)} 0-1